bitfinex-derivatives/quotes_SOLF0:USTF0_20241230
["timestamp","ask_amount","ask_price","bid_price","bid_amount"]
[1735565043786,28.2411904,191.4,191.38,2.6168]
[1735565043986,28.2411904,191.4,191.36,3.6]
[1735565044382,28.2411904,191.4,191.39,2.6167]
[1735565044583,58.21658089,191.47,191.36,3.6]
[1735565044990,60.83218089,191.47,191.4,2.6165]
[1735565045486,60.83218089,191.47,191.36,3.6]
[1735565046187,60.83218089,191.47,191.4,2.6165]
[1735565046984,2.6161,191.44,191.38,2.6167]
[1735565047188,58.21658089,191.47,191.36,3.6]
[1735565048691,2.5617,191.56,191.4,21.00008943]
[1735565048886,4.2288,191.55,191.49,2.6153]
[1735565049185,28.2411904,191.59,191.46,3.6]
[1735565049386,28.2411904,191.59,191.5,2.6151]
[1735565049586,28.2411904,191.59,191.47,3.6]
[1735565050190,1.6142,191.6,191.47,3.6]
[1735565050591,4.2281,191.6,191.5,2.6151]
[1735565050892,21.00008943,191.57,191.45,3.6]
[1735565051092,24.60008943,191.57,191.45,3.6]
[1735565051293,2.6151,191.51,191.45,6.2159]
[1735565051493,24.60008943,191.57,191.45,6.2159]
[1735565052193,24.60008943,191.57,191.45,3.6]
[1735565052194,3.6,191.57,191.45,3.6]
[1735565052589,24.60008943,191.57,191.42,1.5614]
[1735565053587,2.6152,191.5,191.44,2.6159]
[1735565053993,2.6152,191.5,191.42,1.5614]
[1735565054493,2.615,191.52,191.42,1.5614]
[1735565054695,21.00008943,191.54,191.42,1.5614]
[1735565054895,1.5764,191.53,191.42,1.5614]
[1735565055489,2.6151,191.51,191.45,2.6159]
[1735565055793,1.5764,191.53,191.42,1.5614]
[1735565055991,1.5764,191.53,191.41,3.6]
[1735565056583,4.1913,191.53,191.41,3.6]
[1735565057991,2.6151,191.51,191.41,3.6]
[1735565058194,2.6151,191.51,191.44,2.6159]
[1735565058393,1.5764,191.53,191.37,24.04678943]
[1735565058691,1.5128,191.5,191.38,3.6]
[1735565058897,1.5128,191.5,191.44,2.616]
[1735565059094,1.5128,191.5,191.37,24.04678943]
[1735565059298,21.00008943,191.48,191.38,2.6167]
[1735565059890,21.00008943,191.45,191.32,1.6002]
[1735565060091,21.00008943,191.42,191.31,5.1412]
[1735565060394,2.6171,191.37,191.31,3.6]
[1735565060789,1.5788,191.41,191.31,3.6]
[1735565060994,2.5508,191.41,191.31,3.6]
[1735565061396,21.00008943,191.39,191.26,6.7414]
[1735565061591,3.6,191.38,191.26,6.7414]
[1735565061893,3.6,191.38,191.19,3.6]
[1735565061894,21.00008943,191.33,191.19,3.6]
[1735565062287,21.00008943,191.33,191.25,2.6186]
[1735565062288,2.6178,191.32,191.25,2.6186]
[1735565062904,2.6178,191.32,191.19,3.6]
[1735565063097,2.6172,191.36,191.2,21.00008943]
[1735565063690,2.6173,191.35,191.28,2.6181]
[1735565063894,21.00008943,191.36,191.21,3.6]
[1735565064400,2.6178,191.32,191.26,2.6185]
[1735565064897,21.00008943,191.36,191.21,3.6]
[1735565065098,2.6181,191.29,191.23,2.6189]
[1735565065797,2.6185,191.27,191.2,2.6192]
[1735565066005,21.00008943,191.3,191.18,3.6]
[1735565066305,2.6184,191.27,191.22,2.6189]
[1735565066503,1.5399,191.29,191.18,3.6]
[1735565067394,2.6185,191.26,191.2,2.6193]
[1735565068199,2.6189,191.23,191.17,2.6196]
[1735565068395,2.6189,191.23,191.16,6.6074]
[1735565069301,2.6188,191.25,191.18,2.6196]
[1735565069499,2.6188,191.25,191.16,3.0074]
[1735565070206,2.6188,191.24,191.19,2.6194]
[1735565070407,21.00008943,191.27,191.13,3.6]
[1735565071104,2.6191,191.22,191.17,2.6197]
[1735565072909,21.00008943,191.27,191.13,3.6]
[1735565073097,1.5399,191.29,191.17,21.00008943]
[1735565073298,24.60008943,191.34,191.17,21.00008943]
[1735565073505,2.618,191.31,191.25,2.6186]
[1735565073803,24.60008943,191.34,191.2,3.6]
[1735565074003,21.00008943,191.37,191.2,24.60008943]
[1735565074306,21.00008943,191.37,191.21,1.4969]
[1735565074605,3.0506,191.38,191.23,21.00008943]
[1735565075107,2.6171,191.36,191.32,2.6177]
[1735565075306,3.0506,191.38,191.26,3.6]
[1735565076203,2.6173,191.36,191.26,3.6]
[1735565077007,3.0506,191.38,191.26,3.6]
[1735565077605,3.0506,191.38,191.29,2.618]
[1735565078608,2.6175,191.34,191.29,2.618]
[1735565078809,3.0506,191.38,191.26,3.6]
[1735565080402,2.6175,191.34,191.29,2.618]
[1735565080601,1.84175667,191.34,191.29,2.618]
[1735565080810,3.0506,191.38,191.29,2.618]
[1735565081005,3.0506,191.38,191.26,3.6]
[1735565081006,21.00008943,191.37,191.26,2.6184]
[1735565081201,21.00008943,191.34,191.18,3.0542]
[1735565081403,3.6,191.33,191.19,3.6]
[1735565082011,2.6184,191.28,191.23,2.6188]
[1735565082310,2.6184,191.28,191.18,3.0542]
[1735565082311,21.00008943,191.31,191.18,3.0542]
[1735565082709,2.6184,191.27,191.23,2.6189]
[1735565083005,21.00008943,191.31,191.18,3.0542]
[1735565083902,2.6185,191.27,191.22,2.6189]
[1735565084108,21.00008943,191.31,191.16,3.6]
[1735565084504,21.00008943,191.31,191.17,3.6]
[1735565085108,0.9754,191.3,191.17,3.6]
[1735565086608,21.00008943,191.28,191.14,3.6]
[1735565086915,2.6191,191.22,191.14,3.6]
[1735565087312,5.2228,191.27,191.13,3.0457]
[1735565087513,2.6195,191.19,191.1,3.6]
[1735565088217,21.00008943,191.25,191.1,3.6]
[1735565088416,2.6194,191.2,191.15,2.6199]
[1735565089516,2.6194,191.2,191.16,2.6198]
[1735565090713,2.6195,191.19,191.15,2.62]
[1735565091718,21.00008943,191.19,190.97,5.2449]
[1735565091923,1.5177,191.18,191.01,22.61438943]
[1735565092215,21.00008943,191.16,191.08,2.621]
[1735565092412,3.52,191.15,191.01,1.6143]
[1735565092617,3.52,191.15,191.02,3.52]
[1735565093115,2.6207,191.11,191.05,2.6213]
[1735565093315,3.52,191.15,191.02,3.52]
[1735565094418,2.6206,191.11,191.02,3.52]
[1735565095011,3.52,191.15,191.01,1.6143]
[1735565095217,2.6209,191.09,191.01,1.6143]
[1735565096019,2.6209,191.09,191.0,3.52]
[1735565096316,2.6209,191.09,190.98,24.00178943]
[1735565096516,21.00008943,191.13,190.98,24.00178943]
[1735565096517,2.6213,191.06,191.02,2.6217]
[1735565096722,21.00008943,191.13,190.98,3.0017]
[1735565096925,2.6213,191.06,190.98,2.6222]
[1735565097221,24.52008943,191.07,190.98,2.6222]
[1735565097724,24.52008943,191.07,190.93,3.52]
[1735565098226,2.622,191.01,190.93,3.52]
[1735565099229,2.622,191.01,190.96,2.6225]
[1735565100435,21.00008943,191.07,190.93,3.52]
[1735565100621,3.52,191.08,190.94,21.00008943]
[1735565100822,3.0901,191.09,190.94,21.00008943]
[1735565101021,2.6211,191.08,190.94,21.00008943]
[1735565102129,24.52008943,191.1,190.94,21.00008943]
[1735565102334,2.6205,191.12,191.06,2.6211]
[1735565103030,2.6205,191.12,191.01,3.0057]
[1735565103334,2.6205,191.12,191.07,2.621]
[1735565103530,21.00008943,191.1,190.98,1.5412]
[1735565103730,21.00008943,191.07,191.0,2.6219]
[1735565104031,2.6216,191.04,190.98,1.5412]
[1735565104330,3.52,191.08,190.98,1.5412]
[1735565104526,6.1411,191.08,190.98,1.5412]
[1735565104728,3.52,191.08,190.98,1.5412]
[1735565105426,21.00008943,191.13,190.98,1.5412]
[1735565105625,26.10048943,191.16,191.0,21.00008943]
[1735565105831,22.58048943,191.16,191.01,3.1084]
[1735565106025,22.58048943,191.16,191.03,21.00008943]
[1735565106026,1.5804,191.16,191.03,21.00008943]
[1735565106230,21.00008943,191.19,191.04,3.52]
[1735565106533,2.6197,191.18,191.04,3.52]
[1735565107032,2.6194,191.2,191.14,2.6201]
[1735565107330,2.6194,191.2,191.1,3.52]
[1735565107531,2.6194,191.2,191.11,3.0165]
[1735565107734,2.6194,191.2,191.13,2.6202]
[1735565107933,2.6194,191.2,191.11,3.0165]
[1735565108328,2.6194,191.2,191.14,2.62]
[1735565108531,2.6198,191.17,191.11,3.0165]
[1735565108730,21.00008943,191.19,191.11,3.0165]
[1735565109525,21.00008943,191.19,191.13,2.6203]
[1735565110131,21.00008943,191.19,191.11,2.6205]
[1735565110132,2.6199,191.16,191.11,2.6205]
[1735565110326,21.00008943,191.19,191.07,3.52]
[1735565110730,2.6197,191.18,191.13,2.6202]
[1735565111234,21.00008943,191.19,191.07,3.52]
[1735565111434,23.61958943,191.19,191.14,2.62]
[1735565112733,21.00008943,191.19,191.04,3.0938]
[1735565112934,2.62,191.15,191.1,2.6206]
[1735565113335,21.00008943,191.19,191.05,3.52]
[1735565113532,2.6199,191.16,191.12,2.6203]
[1735565114331,2.6199,191.16,191.05,3.52]
[1735565114332,21.00008943,191.19,191.05,3.52]
[1735565114528,2.6198,191.17,191.05,3.52]
[1735565115040,21.00008943,191.22,191.06,21.00008943]
[1735565115238,1.6251,191.24,191.09,21.00008943]
[1735565115438,4.2439,191.24,191.2,2.6193]
[1735565116137,2.6189,191.23,191.19,2.6194]
[1735565117228,21.00008943,191.28,191.2,2.6193]
[1735565117435,21.00008943,191.28,191.15,2.9836]
[1735565118243,2.6187,191.25,191.21,2.6192]
[1735565118638,2.6184,191.27,191.18,2.6195]
[1735565118837,21.00008943,191.28,191.15,2.9836]
[1735565120141,2.619,191.23,191.15,2.9836]
[1735565120337,3.52,191.25,191.15,2.9836]
[1735565120539,21.00008943,191.23,191.13,2.6203]
[1735565121041,21.00008943,191.23,191.14,2.6201]
[1735565121242,21.00008943,191.23,191.12,3.52]
[1735565121834,21.00008943,191.23,191.13,2.6203]
[1735565122036,21.00008943,191.23,191.12,3.52]
[1735565122434,2.6194,191.2,191.12,3.52]
[1735565122639,3.46,191.27,191.12,3.52]
[1735565122835,3.46,191.27,191.13,1.5364]
[1735565123037,2.619,191.23,191.17,2.6197]
[1735565123232,3.46,191.27,191.13,1.5364]
[1735565123634,21.00008943,191.25,191.17,2.6196]
[1735565124038,3.46,191.27,191.13,1.5364]
[1735565124341,2.6191,191.22,191.17,2.6197]
[1735565124541,3.46,191.27,191.13,1.5364]
[1735565124542,21.00008943,191.28,191.15,3.46]
[1735565125445,2.6185,191.26,191.19,2.6194]
[1735565125647,21.00008943,191.28,191.15,3.46]
[1735565125945,2.6192,191.22,191.17,2.6196]
[1735565126245,2.6192,191.22,191.15,3.46]
[1735565126539,21.00008943,191.22,191.13,2.6203]
[1735565126741,21.00008943,191.22,191.1,3.1346]
[1735565127147,21.00008943,191.22,191.12,2.6204]
[1735565127647,21.00008943,191.22,191.1,3.1346]
[1735565128347,21.00008943,191.22,191.13,2.6202]
[1735565128542,21.00008943,191.22,191.1,3.1346]
[1735565128943,2.6195,191.19,191.12,2.6204]
[1735565129250,21.00008943,191.22,191.1,3.1346]
[1735565130337,3.46,191.21,191.1,3.1346]
[1735565130541,5.0616,191.21,191.1,1.5952]
[1735565130849,21.00008943,191.19,191.02,21.00008943]
[1735565131051,21.00008943,191.19,191.03,3.46]
[1735565131447,2.6203,191.13,191.09,2.6208]
[1735565131952,2.6202,191.14,191.1,2.6206]
[1735565132542,3.46,191.16,191.03,3.46]
[1735565132748,24.46008943,191.16,191.03,3.46]
[1735565133040,2.6208,191.1,191.03,3.46]
[1735565133247,24.46008943,191.16,191.03,3.46]
[1735565133452,2.6206,191.12,191.09,2.6208]
[1735565133651,3.46,191.16,191.03,3.46]
[1735565134348,2.6202,191.14,191.06,2.6211]
[1735565134656,24.46008943,191.19,191.03,3.46]
[1735565134952,2.6202,191.14,191.1,2.6206]
[1735565135550,7.0602976,191.2,191.08,3.46]
[1735565135750,1.6016,191.21,191.09,4.9532]
[1735565135952,7.0602976,191.23,191.1,3.0652]
[1735565136153,2.6194,191.2,191.16,2.6199]
[1735565137256,2.6195,191.19,191.15,2.62]
[1735565137554,1.5193,191.24,191.15,2.62]
[1735565137754,2.6198,191.17,191.14,2.6201]
[1735565137956,2.6198,191.17,191.1,3.0652]
[1735565138555,21.00008943,191.23,191.1,1.4762]
[1735565139353,2.6193,191.2,191.1,1.4762]
[1735565139553,21.00008943,191.23,191.1,1.4762]
[1735565139754,2.6195,191.19,191.15,2.6199]
[1735565140458,2.6198,191.17,191.14,2.6201]
[1735565140758,21.00008943,191.23,191.1,4.9362]
[1735565141152,2.6199,191.16,191.1,4.9362]
[1735565141653,2.62,191.15,191.11,2.6205]
[1735565142255,21.00008943,191.17,191.04,1.6163]
[1735565142452,1.5984,191.16,191.04,1.6163]
[1735565142654,3.46,191.15,191.02,3.46]
[1735565142960,21.00008943,191.14,190.99,3.1246]
[1735565143151,21.00008943,191.14,190.99,6.5846]
[1735565143552,2.6212,191.07,191.02,2.6217]
[1735565144856,2.6213,191.06,191.02,2.6217]
[1735565145261,2.6214,191.05,191.0,2.6219]
[1735565145471,21.00008943,191.08,190.93,21.00008943]
[1735565145664,6.4924,191.07,190.95,3.46]
[1735565146162,2.6217,191.03,190.95,3.46]
[1735565146660,6.4924,191.07,190.94,3.46]
[1735565147160,2.6218,191.03,190.98,2.6223]
[1735565147361,6.4924,191.07,190.92,6.5164]
[1735565147560,21.00008943,191.05,190.92,6.5164]
[1735565147759,2.6223,190.99,190.95,2.6228]
[1735565147962,2.6223,190.99,190.92,6.5164]
[1735565147963,2.6223,190.99,190.92,3.0564]
[1735565148366,2.6223,190.99,190.94,2.6228]
[1735565148563,2.6224,190.98,190.94,2.6228]
[1735565149364,2.6222,191.0,190.94,2.6228]
[1735565149664,21.00008943,191.05,190.94,2.6228]
[1735565149864,2.6224,190.98,190.94,2.6228]
[1735565150060,2.6224,190.98,190.87,21.00008943]
[1735565150262,24.48008943,191.02,190.86,8.3055]
[1735565150663,24.48008943,191.02,190.91,2.6233]
[1735565150862,2.6226,190.97,190.91,2.6233]
[1735565151469,2.6228,190.96,190.91,2.6233]
[1735565151965,24.48008943,191.02,190.92,2.6231]
[1735565153070,2.6225,190.98,190.92,2.6231]
[1735565153272,2.6225,190.98,190.93,2.623]
[1735565153965,2.6228,190.95,190.91,2.6232]
[1735565154166,2.6228,190.95,190.86,8.3055]
[1735565154971,2.6228,190.95,190.9,2.6233]
[1735565156170,2.6228,190.95,190.91,2.6233]
[1735565157176,2.6229,190.94,190.89,2.6235]
[1735565157872,1.4929,190.98,190.86,18.01916774]
[1735565158067,2.6228,190.95,190.9,2.6234]
[1735565158674,2.6229,190.94,190.9,2.6234]
[1735565159576,2.6229,190.94,190.89,2.6236]
[1735565159773,13.19366774,190.96,190.86,16.43176774]
[1735565159975,13.19366774,190.96,190.81,1.5819]
[1735565159976,13.19366774,190.93,190.81,1.5819]
[1735565160486,2.6232,190.92,190.81,1.5819]
[1735565160687,2.6232,190.92,190.82,13.19366774]
[1735565160889,13.19366774,190.93,190.82,13.19366774]
[1735565161689,2.4733,190.98,190.85,13.19366774]
[1735565161690,13.19366774,190.96,190.85,13.19366774]
[1735565161991,1.4929,190.98,190.86,3.48]
[1735565162789,1.4929,190.98,190.89,13.19366774]
[1735565162980,1.4929,190.98,190.87,3.0866]
[1735565163990,3.48,191.0,190.87,3.0866]
[1735565164493,2.6226,190.97,190.9,2.6233]
[1735565164786,13.19366774,190.98,190.87,3.0866]
[1735565164985,13.19366774,191.01,190.87,3.0866]
[1735565165185,16.67366774,191.01,190.95,2.6227]
[1735565165390,16.67366774,191.01,190.87,3.0866]
[1735565165588,2.6224,190.98,190.93,2.6229]
[1735565166090,16.67366774,191.01,190.87,3.0866]
[1735565167288,16.67366774,191.01,190.96,2.6226]
[1735565167689,13.19366774,191.01,190.96,2.6226]
[1735565167883,2.6222,191.0,190.96,2.6226]
[1735565168487,2.6222,191.0,190.91,3.48]
[1735565168488,15.81566774,191.01,190.97,2.6224]
[1735565168683,75.40345826,193.6,190.92,13.19366774]
[1735565168992,13.19366774,191.1,191.06,2.6212]
[1735565169193,3.0736,191.12,191.01,16.67366774]
[1735565169395,1.4824,191.12,191.01,16.67366774]
[1735565169691,20.25396534,191.13,191.1,2.6207]
[1735565169885,13.19366774,191.16,191.06,3.48]
[1735565170088,13.19366774,191.16,191.09,2.6208]
[1735565170291,13.19366774,191.16,191.06,3.48]
[1735565171292,13.19366774,191.13,191.06,3.48]
[1735565171586,2.6207,191.1,191.02,3.48]
[1735565172586,13.19366774,191.1,191.02,3.48]
[1735565172989,2.6209,191.09,191.04,2.6214]
[1735565173295,13.19366774,191.1,191.02,3.48]
[1735565174090,13.19366774,191.13,191.02,3.48]
[1735565174691,3.48,191.15,191.03,13.19366774]
[1735565175399,2.6202,191.14,191.03,13.19366774]
[1735565175697,13.19366774,191.16,191.03,13.19366774]
[1735565176094,1.6223,191.17,191.06,13.19366774]
[1735565176397,1.6223,191.17,191.01,1.525]
[1735565176398,2.6192,191.21,191.09,13.19366774]
[1735565176586,2.6192,191.21,191.1,3.48]
[1735565176991,2.6194,191.2,191.1,3.48]
[1735565177397,2.6194,191.2,191.15,2.62]
[1735565177792,14.73396774,191.22,191.1,3.48]
[1735565179491,2.6194,191.2,191.13,2.6202]
[1735565179688,2.6194,191.2,191.1,3.48]
[1735565180394,2.6192,191.21,191.1,3.48]
[1735565180794,14.73396774,191.22,191.1,4.9829]
[1735565180995,17.35316774,191.22,191.1,4.9829]
[1735565181597,17.35316774,191.22,191.17,2.6197]
[1735565182398,15.81286774,191.22,191.17,2.6197]
[1735565183204,13.19366774,191.22,191.15,2.6199]
[1735565183397,13.19366774,191.16,191.07,3.0291]
[1735565183700,13.19366774,191.16,191.07,2.621]
[1735565183701,2.6205,191.12,191.07,2.621]
[1735565183887,2.6205,191.12,191.04,3.44]
[1735565184498,2.6205,191.12,191.07,2.621]
[1735565187301,13.19366774,191.13,190.99,3.062]
[1735565187502,13.19366774,191.1,190.92,1.4791]
[1735565187694,13.19366774,191.07,190.94,13.19366774]
[1735565188002,2.6216,191.04,190.98,2.6223]
[1735565188999,13.19366774,191.04,190.93,1.4791]
[1735565189499,2.6222,191.0,190.94,2.6228]
[1735565189695,16.63366774,191.04,190.94,2.6228]
[1735565190997,16.63366774,191.04,190.93,1.4791]
[1735565191901,16.63366774,191.07,190.93,1.4791]
[1735565192302,3.44,191.07,190.93,1.4791]
[1735565192497,2.6215,191.05,190.93,1.4791]
[1735565192798,3.44,191.07,190.93,1.4791]
[1735565193003,2.6209,191.09,191.04,2.6214]
[1735565193406,2.6209,191.09,191.0,3.44]
[1735565194509,2.6207,191.1,191.0,3.44]
[1735565194699,2.6207,191.1,191.01,1.5743]
[1735565194899,2.6207,191.1,191.05,2.6213]
[1735565195504,3.1521,191.12,191.05,2.6213]
[1735565195803,24.24412132,191.12,190.97,3.44]
[1735565196005,21.09202132,191.09,190.97,3.44]
[1735565196211,3.44,191.08,190.97,3.44]
[1735565197295,3.44,191.08,190.99,2.6221]
[1735565198102,2.6216,191.04,190.99,2.6221]
[1735565198504,2.6217,191.03,190.99,2.6221]
[1735565198704,3.44,191.08,191.0,2.6221]
[1735565199701,2.6216,191.04,191.0,2.6221]
[1735565200808,3.44,191.08,190.99,2.6222]
[1735565201405,27.68412132,191.12,190.97,3.44]
[1735565202002,2.621,191.08,190.97,3.44]
[1735565202504,2.6211,191.07,191.03,2.6216]
[1735565202705,27.68412132,191.12,191.03,2.6216]
[1735565203010,2.6208,191.1,191.03,2.6216]
[1735565203211,24.24412132,191.12,190.97,3.44]
[1735565203413,1.6041,191.12,190.99,21.09202132]
[1735565204111,2.621,191.08,190.99,21.09202132]
[1735565204306,1.6041,191.12,190.97,3.44]
[1735565204709,3.44,191.11,190.97,3.44]
[1735565205609,2.6212,191.07,190.97,3.44]
[1735565206007,3.44,191.11,190.97,3.44]
[1735565206205,2.6209,191.09,191.05,2.6213]
[1735565206403,1.6041,191.12,191.02,3.44]
[1735565206611,1.6041,191.12,191.03,3.44]
[1735565207213,2.6207,191.1,191.03,3.44]
[1735565207805,2.6209,191.09,191.06,2.6212]
[1735565209310,2.6207,191.1,191.07,2.6211]
[1735565210210,2.6206,191.11,191.08,2.621]
[1735565213100,1.6041,191.12,191.11,2.6206]
[1735565213301,13.17284543,191.18,191.09,3.56]
[1735565213507,1.5459,191.2,191.09,3.56]
[1735565213812,2.6197,191.18,191.09,3.56]
[1735565214309,1.5459,191.2,191.09,3.56]
[1735565214703,1.5459,191.2,191.1,3.161]
[1735565215016,4.1652,191.2,191.16,2.6198]
[1735565216017,1.5459,191.2,191.14,2.62]
[1735565216412,2.6196,191.18,191.1,3.161]
[1735565217415,2.6195,191.19,191.15,2.6199]
[1735565218517,2.6199,191.16,191.13,2.6202]
[1735565219317,13.17284543,191.15,191.05,3.56]
[1735565220118,13.17284543,191.15,191.03,3.56]
[1735565220424,2.6208,191.1,191.06,2.6212]
[1735565220813,13.17284543,191.12,191.02,3.56]
[1735565221114,13.17284543,191.06,190.92,1.5697]
[1735565221317,13.17284543,191.06,190.93,3.56]
[1735565221514,2.6219,191.02,190.93,3.56]
[1735565222421,2.6219,191.02,190.92,16.32594543]
[1735565222622,2.6219,191.02,190.97,2.6224]
[1735565223523,2.6219,191.02,190.98,2.6223]
[1735565224133,2.6217,191.03,190.98,2.6223]
[1735565224334,21.09688306,191.07,191.01,2.6218]
[1735565224535,24.65688306,191.1,190.94,3.56]
[1735565224735,2.6212,191.07,190.94,3.56]
[1735565225238,21.09688306,191.1,191.02,2.6217]
[1735565225436,2.6213,191.06,190.94,3.56]
[1735565225829,21.09688306,191.1,190.94,3.56]
[1735565226030,21.09688306,191.07,190.98,2.6223]
[1735565226233,21.09688306,191.07,190.94,3.56]
[1735565226632,21.09688306,191.07,190.98,2.6223]
[1735565226831,21.09688306,191.07,190.92,3.1531]
[1735565227037,2.6224,190.98,190.87,24.65688306]
[1735565227238,3.56,191.01,190.87,21.09688306]
[1735565227439,1.4881,191.0,190.88,3.56]
[1735565228036,2.6227,190.96,190.91,2.6232]
[1735565228838,1.4881,191.0,190.89,2.6235]
[1735565229143,1.4881,191.0,190.86,5.1119]
[1735565229337,1.4881,191.0,190.86,1.5319]
[1735565230040,2.6228,190.95,190.9,2.6233]
[1735565231541,2.6225,190.97,190.9,2.6234]
[1735565231744,1.4881,191.0,190.86,1.5319]
[1735565232345,2.6226,190.96,190.91,2.6233]
[1735565232939,2.6225,190.97,190.93,2.623]
[1735565233144,5.0681,191.0,190.86,1.5319]
[1735565234237,2.6224,190.98,190.86,1.5319]
[1735565234438,5.0681,191.0,190.87,21.09688306]
[1735565234646,5.0681,191.0,190.86,1.5319]
[1735565234647,2.6223,190.99,190.94,2.6229]
[1735565234847,5.0681,191.0,190.86,1.5319]
[1735565235044,1.4881,191.0,190.87,3.58]
[1735565236142,2.6222,190.99,190.87,3.58]
[1735565236343,1.4881,191.0,190.87,3.58]
[1735565236849,1.4881,191.0,190.91,2.6233]
[1735565237945,2.6229,190.95,190.91,2.6233]
[1735565238145,2.6229,190.95,190.87,3.58]
[1735565238349,2.6229,190.95,190.92,2.6232]
[1735565238748,2.6229,190.95,190.87,3.58]
[1735565238948,2.6229,190.95,190.91,2.6233]
[1735565239152,2.6229,190.95,190.87,3.58]
[1735565240450,2.6229,190.95,190.92,2.6232]
[1735565240646,2.6226,190.97,190.87,3.58]
[1735565240851,3.42,190.99,190.87,3.58]
[1735565241350,3.42,190.99,190.92,2.6232]
[1735565242553,2.6227,190.96,190.92,2.6232]
[1735565243051,2.6229,190.94,190.87,3.58]
[1735565243246,3.42,190.99,190.87,3.58]
[1735565243751,2.6228,190.95,190.92,2.6231]
[1735565243951,3.42,190.99,190.87,3.58]
[1735565244249,1.4881,191.0,190.98,2.6222]
[1735565244546,4.4177,191.06,190.92,3.44]
[1735565244750,2.6214,191.05,191.01,2.6218]
[1735565244943,1.5627,191.08,190.97,3.44]
[1735565246256,2.6216,191.04,191.0,2.6219]
[1735565246756,13.18273911,191.07,190.97,3.44]
[1735565247452,2.6214,191.05,191.0,2.6221]
[1735565248149,13.18273911,191.07,190.97,3.44]
[1735565249452,13.18273911,191.04,190.97,3.44]
[1735565249653,13.18273911,191.04,190.94,1.4763]
[1735565249855,16.60273911,191.04,190.97,2.6224]
[1735565250256,2.6219,191.02,190.94,1.4763]
[1735565250457,16.60273911,191.04,190.98,2.6223]
[1735565250856,2.6219,191.02,190.98,2.6223]
[1735565252156,2.6217,191.03,190.99,2.6221]
[1735565252661,13.18273911,191.07,191.02,2.6217]
[1735565253061,13.18273911,191.07,190.95,13.18273911]
[1735565253263,2.6213,191.06,191.03,2.6216]
[1735565254766,56.8535359,191.09,190.98,16.60273911]
[1735565254960,43.04962951,191.14,191.01,13.18273911]
[1735565255168,43.04962951,191.14,191.02,3.0535]
[1735565255362,43.04962951,191.14,191.03,3.42]
[1735565255563,14.80843911,191.14,191.03,3.42]
[1735565257365,2.6204,191.13,191.09,2.6208]
[1735565258255,14.80843911,191.14,191.03,3.42]
[1735565258455,14.80843911,191.14,191.02,3.0535]
[1735565258656,13.18273911,191.11,191.02,3.0535]
[1735565259261,2.6211,191.08,191.05,2.6214]
[1735565259467,2.6211,191.08,191.02,3.0535]
[1735565260563,2.6211,191.08,191.04,2.6215]
[1735565261769,2.6211,191.07,191.04,2.6215]
[1735565261966,13.18273911,191.11,190.99,4.8988]
[1735565262169,13.18273911,191.11,191.05,2.6214]
[1735565262365,2.6209,191.09,191.05,2.6214]
[1735565262569,13.18273911,191.11,191.05,2.6214]
[1735565263565,2.621,191.08,191.05,2.6214]
[1735565268273,13.18273911,191.11,190.99,1.4788]
[1735565268676,13.18273911,191.08,190.95,13.18273911]
[1735565268974,13.18273911,191.05,190.94,3.0442]
[1735565269575,2.6217,191.03,190.97,2.6224]
[1735565269777,13.18273911,191.05,190.94,3.0442]
[1735565270278,2.6218,191.02,191.0,2.6221]
[1735565270478,1.5124,191.06,190.94,3.0442]
[1735565270676,4.1337,191.06,191.03,2.6216]